bitfinex/quotes_SOLUSD_20250920
["timestamp","ask_amount","ask_price","bid_price","bid_amount"]
[1758329710499,10.4177015,239.98,239.9,31.98]
[1758329710703,31.2,239.95,239.91,0.7]
[1758329711016,31.2,239.95,239.92,32.68]
[1758329711707,31.2,239.93,239.92,32.68]
[1758329714299,31.2,239.93,239.92,31.98]
[1758329721423,31.2,239.95,239.93,13.59559401]
[1758329721825,31.2,239.95,239.93,14.29559401]
[1758329722208,35.36718047,239.98,239.94,0.7]
[1758329722409,32.44731859,239.98,239.95,31.96]
[1758329722617,0.67,239.97,239.95,31.96]
[1758329723011,0.67,239.96,239.95,31.96]
[1758329724610,0.67,239.96,239.92,4.86804072]
[1758329724824,0.67,239.96,239.93,31.98]
[1758329726718,4.16719262,239.97,239.93,32.65]
[1758329726919,4.82719262,239.97,239.93,32.65]
[1758329728332,0.66,239.96,239.93,31.98]
[1758329728837,10.41504005,240.04,239.96,13.59559401]
[1758329729011,31.2,240.01,239.97,32.63]
[1758329729332,31.2,240.01,239.98,0.67]
[1758329729928,31.2,240.0,239.98,0.67]
[1758329730619,35.36655587,240.01,239.98,0.67]
[1758329731216,36.02655587,240.01,239.98,0.67]
[1758329732225,36.02655587,240.01,239.97,31.96]
[1758329732534,36.02655587,240.01,239.97,32.63]
[1758329732710,0.66,240.05,239.98,14.26559401]
[1758329733026,1.24731859,240.04,240.0,13.59559401]
[1758329733328,33.10731859,240.04,240.01,31.98]
[1758329733530,0.66,240.03,240.01,31.98]
[1758329733746,1.90731859,240.03,240.01,31.98]
[1758329734033,31.2,240.03,240.02,13.59559401]
[1758329736240,0.66,240.03,240.02,13.59559401]
[1758329737230,5.41332906,240.04,240.02,13.59559401]
[1758329737430,6.07332906,240.04,240.03,31.98]
[1758329737631,31.2,240.01,240.0,13.59559401]
[1758329737830,31.2,240.01,240.0,45.57559401]
[1758329738029,31.2,240.01,240.0,46.24559401]
[1758329738834,4.82601047,240.04,240.0,46.24559401]
[1758329739027,31.2,240.01,240.0,45.57559401]
[1758329740236,31.2,240.01,240.0,46.24559401]
[1758329740740,31.2,240.01,240.0,45.57559401]
[1758329741940,4.16601047,240.04,240.0,45.57559401]
[1758329742243,31.2,240.01,240.0,45.57559401]
[1758329742450,37.27381165,240.01,239.95,13.59559401]
[1758329742618,1.90731859,240.0,239.97,13.59559401]
[1758329742818,0.66,239.99,239.98,31.98]
[1758329743538,6.07415887,239.99,239.98,31.98]
[1758329744325,37.27415887,239.99,239.98,31.98]
[1758329744640,37.27415887,239.99,239.98,31.96]
[1758329745214,37.27415887,239.99,239.94,14.26559401]
[1758329745525,31.2,239.97,239.96,13.59559401]
[1758329746621,31.2,239.97,239.96,45.55559401]
[1758329747749,31.86,239.97,239.96,45.55559401]
[1758329749623,31.2,239.97,239.96,45.55559401]
[1758329750122,36.02718756,239.97,239.96,13.59559401]
[1758329750446,36.02718756,239.97,239.96,45.55559401]
[1758329750826,37.97477936,239.97,239.96,45.55559401]
[1758329752636,31.2,239.97,239.96,46.22559401]
[1758329752836,31.2,239.98,239.96,46.22559401]
[1758329753048,31.2,239.98,239.97,14.26559401]
[1758329753456,31.2,240.0,239.97,14.26559401]
[1758329753641,31.2,239.98,239.97,14.26559401]
[1758329753957,31.2,239.98,239.97,46.20559401]
[1758329754328,31.2,239.98,239.97,45.53559401]
[1758329754527,4.1666853,240.0,239.97,45.53559401]
[1758329754749,4.8266853,240.0,239.97,45.53559401]
[1758329756940,4.16649306,240.01,239.97,45.53559401]
[1758329757146,31.2,239.98,239.97,46.23559401]
[1758329757526,1.9475918,240.0,239.97,13.59559401]
[1758329757752,31.2,239.98,239.95,0.7]
[1758329758049,33.1475918,239.98,239.96,45.53559401]
[1758329758355,31.2,239.98,239.96,46.23559401]
[1758329759553,31.2,239.97,239.96,46.23559401]
[1758329761041,31.2,239.97,239.94,14.25559401]
[1758329761357,31.2,239.97,239.93,6.11543271]
[1758329761358,31.2,239.97,239.96,13.59559401]
[1758329761562,31.2,239.97,239.94,14.25559401]
[1758329761739,31.2,239.97,239.96,13.59559401]
[1758329761939,0.72,239.97,239.96,13.59559401]
[1758329762266,0.72,239.97,239.96,45.51559401]
[1758329762440,37.31464255,239.98,239.96,45.51559401]
[1758329762641,0.72,239.97,239.96,45.51559401]
[1758329762978,38.03464255,239.98,239.96,45.51559401]
[1758329764762,0.72,239.97,239.96,45.51559401]
[1758329768272,0.72,239.97,239.96,45.49559401]
[1758329769669,4.88718756,239.97,239.96,13.59559401]
[1758329769854,4.16718756,239.97,239.96,45.49559401]
[1758329771288,4.88718756,239.97,239.96,45.49559401]
[1758329772166,4.16718756,239.97,239.96,45.49559401]
[1758329772373,33.1475918,239.98,239.96,46.15559401]
[1758329772878,33.1475918,239.98,239.96,45.49559401]
[1758329773567,31.2,239.98,239.96,45.49559401]
[1758329773775,37.3146182,239.98,239.96,45.49559401]
[1758329774773,38.0346182,239.98,239.96,45.49559401]
[1758329776069,0.72,239.97,239.96,13.59559401]
[1758329776282,36.0870264,239.98,239.96,45.51559401]
[1758329776570,37.3146182,239.98,239.96,45.51559401]
[1758329776866,38.0346182,239.98,239.96,45.51559401]
[1758329779869,35.3670264,239.98,239.96,45.51559401]
[1758329780049,37.3146182,239.98,239.96,45.51559401]
[1758329782772,6.83477936,239.97,239.96,45.51559401]
[1758329782973,4.88718756,239.97,239.96,45.51559401]
[1758329783364,31.2,239.94,239.92,13.59559401]
[1758329783675,33.1475918,239.94,239.93,45.49559401]
[1758329784554,37.31530039,239.94,239.93,45.49559401]
[1758329786554,31.2,239.91,239.87,0.67]
[1758329786755,1.9475918,239.9,239.88,45.51559401]
[1758329787255,1.9475918,239.9,239.88,46.18559401]
[1758329788073,1.9475918,239.89,239.88,45.51559401]
[1758329788376,1.9475918,239.89,239.88,46.18559401]
[1758329788576,1.9475918,239.89,239.88,45.51559401]
[1758329789070,36.02838881,239.91,239.88,45.51559401]
[1758329789258,1.9475918,239.9,239.88,45.51559401]
[1758329789664,12.53473165,239.97,239.88,46.18559401]
[1758329790173,1.88168371,239.9,239.89,45.51559401]
[1758329791673,6.05008721,239.9,239.77,85.45296563]
[1758329791884,1.9475918,239.88,239.87,13.59559401]
[1758329792186,1.9475918,239.88,239.83,13.87991715]
[1758329792362,1.9475918,239.88,239.87,14.26559401]
[1758329792557,4.1684035,239.9,239.88,13.59559401]
[1758329792758,35.3684035,239.9,239.89,31.92]
[1758329793762,4.1684035,239.9,239.89,31.92]
[1758329793962,37.3159953,239.9,239.89,31.92]
[1758329795283,14.48284721,239.96,239.89,31.92]
[1758329795284,12.53525541,239.96,239.89,32.59]
[1758329795487,4.1675349,239.95,239.91,13.59559401]
[1758329795791,1.9475918,239.96,239.92,32.59]
[1758329795973,31.2,239.95,239.93,0.67]
[1758329796292,31.2,239.95,239.94,32.59]
[1758329796578,31.2,239.95,239.94,31.92]
[1758329796778,1.9475918,239.96,239.94,31.92]
[1758329797180,31.2,239.95,239.94,31.92]
[1758329797779,4.1675349,239.95,239.94,31.92]
[1758329798283,1.9475918,239.95,239.94,31.92]
[1758329799377,37.3151267,239.95,239.94,31.92]
[1758329800171,37.3151267,239.95,239.92,0.67]
[1758329800494,4.16775842,239.94,239.93,31.92]
[1758329801174,31.2,239.94,239.93,32.59]
[1758329801688,4.16758083,239.95,239.93,32.59]
[1758329802469,35.36758083,239.95,239.94,0.67]
[1758329802674,31.2,239.95,239.94,0.67]
[1758329803592,35.3675349,239.95,239.94,0.67]
[1758329804485,31.2,239.95,239.94,0.67]
[1758329804693,31.2,239.94,239.93,31.92]
[1758329804875,31.2,239.94,239.93,32.59]
[1758329806478,31.2,239.95,239.94,13.59559401]
[1758329806684,31.2,239.99,239.94,48.13318581]
[1758329806891,31.2,239.99,239.96,13.59559401]
[1758329807198,31.2,239.99,239.97,31.92]
[1758329807385,4.16653576,240.01,239.98,0.67]
[1758329807692,35.36653576,240.01,239.99,32.59]
[1758329808790,35.36653576,240.01,239.99,31.92]
[1758329809000,36.61260728,240.01,239.99,31.92]
[1758329810096,35.36653576,240.01,239.99,31.92]
[1758329813302,36.02653576,240.01,239.99,31.92]
[1758329814199,0.66,240.0,239.99,31.92]
[1758329814508,1.90607152,240.0,239.99,31.92]
[1758329815805,31.2,239.97,239.96,31.92]
[1758329816019,37.27325908,239.97,239.96,31.92]
[1758329816483,49.80641973,239.97,239.96,31.92]
[1758329817285,49.14641973,239.97,239.96,31.92]
[1758329820706,36.61325908,239.97,239.96,31.92]
[1758329820912,49.14641973,239.97,239.96,31.92]
[1758329822102,49.86641973,239.97,239.96,31.92]
[1758329822419,49.14641973,239.97,239.96,31.92]
[1758329826808,49.14641973,239.97,239.96,32.6]
[1758329827013,36.61325908,239.97,239.96,32.6]
[1758329827718,49.14641973,239.97,239.96,31.92]
[1758329828295,49.14641973,239.97,239.96,32.6]
[1758329828593,36.61325908,239.97,239.96,32.6]
[1758329829826,4.16718756,239.97,239.96,32.6]
[1758329830615,4.16718756,239.97,239.96,31.92]
[1758329831120,4.16718756,239.97,239.96,32.6]
[1758329840446,4.16718756,239.97,239.96,31.92]
[1758329841038,16.70018266,239.98,239.96,32.6]
[1758329841218,17.94625418,239.98,239.96,32.6]
[1758329842831,1.24607152,239.97,239.96,31.92]
[1758329843025,1.96607152,239.97,239.96,31.92]
[1758329843230,14.49923217,239.97,239.96,31.92]
[1758329843633,17.94641973,239.97,239.96,31.92]
[1758329844821,16.70034821,239.97,239.96,31.92]
[1758329845016,17.94641973,239.97,239.96,31.92]
[1758329846036,5.41325908,239.97,239.96,31.92]
[1758329846230,44.97923217,239.98,239.96,31.92]
[1758329846432,13.77923217,239.98,239.96,31.92]
[1758329846630,43.73316065,239.98,239.96,32.58]
[1758329846845,13.77923217,239.98,239.96,32.58]
[1758329847051,12.53316065,239.98,239.96,31.92]
[1758329847344,4.16642537,240.02,239.97,0.66]
[1758329847651,12.53159005,240.01,239.97,0.66]
[1758329849438,16.69808832,240.01,239.97,0.66]
[1758329850645,17.94415984,240.01,239.97,0.66]
[1758329851943,17.94415984,240.01,239.96,31.92]
[1758329852238,12.53159005,240.01,239.97,0.66]
[1758329852460,31.2,239.99,239.97,0.66]
[1758329852658,31.2,239.99,239.96,36.08726031]
[1758329852818,31.2,239.99,239.98,0.66]
[1758329853956,1.24607152,240.0,239.98,0.66]
[1758329854943,8.22476597,240.0,239.99,31.9]
[1758329855143,20.75635602,240.0,239.98,31.9]
[1758329855340,1.24607152,239.99,239.98,31.9]
[1758329855645,6.1329118,239.99,239.98,31.9]
[1758329856547,6.1329118,239.99,239.95,0.66]
[1758329856727,6.1329118,239.99,239.98,31.9]
[1758329857336,5.4129118,239.99,239.98,31.9]
[1758329857536,36.6129118,239.99,239.98,31.9]
[1758329857953,35.36684028,239.99,239.98,31.9]
[1758329858137,36.6129118,239.99,239.98,31.9]
[1758329858631,32.44607152,239.99,239.98,31.9]
[1758329859146,32.44607152,239.99,239.98,32.56]
[1758329859450,31.2,239.99,239.98,31.9]
[1758329859850,31.2,239.99,239.98,32.56]
[1758329860150,31.2,239.99,239.98,31.9]
[1758329862629,35.36684028,239.99,239.98,31.9]
[1758329869556,35.36684028,239.99,239.93,13.59559401]
[1758329869853,1.94787053,239.98,239.95,0.66]
[1758329870038,1.94787053,239.98,239.96,31.9]
[1758329870358,1.94787053,239.98,239.96,32.56]
[1758329870536,35.36684028,239.99,239.97,0.66]
[1758329870837,37.31471081,239.99,239.97,0.66]
[1758329871454,38.03471081,239.99,239.96,31.9]
[1758329872238,49.84630086,239.99,239.96,32.56]
[1758329874555,49.84630086,239.99,239.97,0.66]
[1758329875255,12.53159005,239.99,239.98,15.54346454]
[1758329875464,12.53159005,239.99,239.98,16.20346454]
[1758329875963,35.36562526,240.06,239.98,16.20346454]
[1758329876160,2.81250398,240.05,239.99,32.56]
[1758329876379,2.81250398,240.05,240.0,0.66]
[1758329877166,6.97835249,240.05,240.0,0.66]
[1758329877353,2.62787053,240.04,239.99,31.9]
[1758329877553,0.68,240.03,239.99,31.9]
[1758329877856,15.15789037,240.04,239.99,32.56]
[1758329878054,33.82787053,240.04,239.99,32.56]
[1758329878261,2.8113093,240.03,239.99,32.56]
[1758329878461,15.34132914,240.03,239.99,32.56]
[1758329878654,13.21001984,240.03,239.99,32.56]
[1758329879057,31.2,240.02,240.0,0.66]
[1758329879756,31.2,240.02,239.99,31.9]
[1758329879957,31.2,240.02,239.99,32.56]
[1758329880863,35.36642235,240.02,239.99,32.56]
[1758329881064,35.36642235,240.02,239.99,32.57]
[1758329881764,35.36642235,240.02,240.0,0.67]
[1758329883069,12.53001984,240.04,240.01,13.59559401]
[1758329883265,0.1,240.09,240.04,13.59559401]
[1758329883469,0.1,240.09,240.05,32.57]
[1758329883772,0.82,240.09,240.05,34.51787053]
[1758329884556,4.98512031,240.09,240.05,34.51787053]
[1758329884754,7.79497653,240.09,240.05,34.51787053]
[1758329884960,7.07497653,240.09,240.05,33.84787053]
[1758329885361,7.79497653,240.09,240.05,34.51787053]
[1758329885874,7.07497653,240.09,240.05,34.51787053]
[1758329886077,7.79497653,240.09,240.05,34.51787053]
[1758329886263,4.98512031,240.09,240.05,34.51787053]
[1758329886577,4.98512031,240.09,240.05,32.57]
[1758329886955,4.26512031,240.09,240.05,32.57]
[1758329887362,4.98512031,240.09,240.05,32.57]
[1758329888372,0.72,240.08,240.03,0.67]
[1758329888558,3.52616591,240.08,240.04,0.67]
[1758329888758,16.05409275,240.08,240.04,0.67]
[1758329888958,13.24792684,240.08,240.04,0.67]
[1758329889160,0.72,240.08,240.04,0.67]
[1758329889378,12.52792684,240.07,240.04,0.67]
[1758329889677,4.16562526,240.06,240.04,0.67]
[1758329889876,4.16562526,240.06,240.03,31.88]
[1758329889877,4.16562526,240.06,240.03,33.82787053]
[1758329890076,12.52792684,240.06,240.04,0.67]
[1758329890465,31.2,240.07,240.04,2.61787053]
[1758329890791,43.7268806,240.07,240.05,0.67]
[1758329891084,43.7268806,240.07,240.04,1.94787053]
[1758329891288,43.7268806,240.07,240.06,0.67]
[1758329892685,43.7268806,240.07,240.03,33.82787053]
[1758329892975,43.7268806,240.07,240.05,0.67]
[1758329893180,43.7268806,240.07,240.06,0.67]
[1758329894968,43.7268806,240.07,240.03,33.82787053]
[1758329895172,43.7268806,240.07,240.04,0.67]
[1758329896174,43.7268806,240.07,240.05,0.67]
[1758329900499,47.89236759,240.07,240.05,0.67]
[1758329900688,47.89236759,240.07,240.03,33.82787053]
[1758329900986,47.89236759,240.07,240.05,0.67]
[1758329901570,47.89236759,240.07,240.03,33.82787053]
[1758329901770,47.89236759,240.07,240.04,0.67]
[1758329901966,35.46515917,240.09,240.06,1.94787053]
[1758329902173,31.3,240.09,240.07,0.67]
[1758329902493,31.2,240.07,240.06,1.94787053]
[1758329902782,31.2,240.07,240.04,13.59559401]
[1758329902990,31.2,240.07,240.05,2.61787053]
[1758329903170,31.2,240.07,240.06,0.67]
[1758329904172,35.46513793,240.09,240.06,0.67]
[1758329904880,47.99097247,240.09,240.06,0.67]
[1758329905086,35.46513793,240.09,240.06,0.67]
[1758329905889,31.2,240.07,240.06,0.67]
[1758329913505,35.36528054,240.08,240.05,0.72]
[1758329915599,35.36528054,240.08,240.04,15.54346454]
[1758329915802,4.16528054,240.08,240.05,0.72]
[1758329918314,31.2,240.07,240.05,0.72]
[1758329919117,4.16528054,240.08,240.05,0.72]
[1758329919420,31.2,240.07,240.05,0.72]
[1758329920020,4.16528054,240.08,240.05,0.72]
[1758329920222,4.16528054,240.08,240.05,2.66787053]
[1758329920811,48.66093996,240.09,240.05,2.66787053]
[1758329921521,36.13510542,240.09,240.05,2.66787053]
[1758329924222,31.97,240.09,240.05,2.66787053]
[1758329924522,31.3,240.09,240.05,1.94787053]
[1758329924821,31.2,240.07,240.06,0.72]
[1758329925031,31.2,240.07,240.04,14.31559401]
[1758329925195,31.2,240.07,240.05,2.66787053]
[1758329927422,0.1,240.09,240.06,13.59559401]
[1758329927716,0.1,240.09,240.08,15.54346454]
[1758329928193,0.1,240.09,240.08,16.26346454]
[1758329928890,0.1,240.09,240.08,20.42874278]
[1758329929820,0.1,240.09,240.08,19.72555878]
[1758329934019,0.1,240.09,240.08,18.48087225]
[1758329934220,0.1,240.09,240.08,19.72555878]
[1758329936444,0.1,240.09,240.08,32.48505561]
[1758329936928,0.1,240.09,240.08,31.24036908]
[1758329937104,0.1,240.09,240.08,32.48505561]
[1758329938529,0.1,240.09,240.08,64.36505561]
[1758329939424,0.1,240.09,240.08,60.19977737]
[1758329939622,0.1,240.09,240.08,64.36505561]
[1758329942912,0.1,240.09,240.08,58.23509084]
[1758329943805,0.77,240.09,240.02,0.67]
[1758329944006,0.77,240.09,240.03,46.72028054]
[1758329944206,0.67,240.08,240.03,46.72028054]
[1758329944512,0.67,240.07,240.03,47.39028054]
[1758329944709,0.67,240.07,240.05,13.59559401]
[1758329944910,31.2,240.08,240.06,31.88]
[1758329945114,36.0353305,240.08,240.06,31.88]
[1758329945316,35.3653305,240.08,240.06,31.88]
[1758329945827,36.0353305,240.08,240.06,31.88]
[1758329946021,35.3653305,240.08,240.06,31.88]
[1758329946222,36.0353305,240.08,240.06,31.88]
[1758329948025,35.3653305,240.08,240.06,31.88]
[1758329948330,36.0353305,240.08,240.06,31.88]
[1758329948530,0.67,240.07,240.06,31.88]
[1758329948835,35.3653305,240.08,240.06,31.88]
[1758329949012,36.0353305,240.08,240.06,31.88]
[1758329953224,0.67,240.07,240.06,31.88]
[1758329953427,35.3653305,240.08,240.06,31.88]
[1758329953823,36.0353305,240.08,240.06,31.88]
[1758329954632,35.3653305,240.08,240.06,31.88]
[1758329955014,36.0353305,240.08,240.06,31.88]
[1758329955511,35.3653305,240.08,240.06,31.88]
[1758329955711,35.3653305,240.08,240.07,0.67]
[1758329956336,35.3653305,240.08,240.06,31.88]
[1758329956529,35.3653305,240.08,240.06,32.55]
[1758329956925,0.1,240.09,240.07,0.67]
[1758329957131,0.1,240.09,240.08,33.12468653]
[1758329957329,0.1,240.09,240.08,33.79468653]
[1758329962247,0.1,240.09,240.08,31.88]
[1758329962952,0.77,240.09,240.08,31.88]
[1758329963152,4.26510475,240.09,240.08,31.88]
[1758329963356,35.46510475,240.09,240.08,31.88]
[1758329963730,36.13510475,240.09,240.06,31.86]
[1758329963930,0.67,240.08,240.06,31.86]
[1758329964746,35.46510475,240.09,240.06,31.86]
[1758329965048,35.46510475,240.09,240.06,32.53]
[1758329970633,36.13510475,240.09,240.06,31.86]
[1758329974955,4.16533517,240.08,240.06,31.86]
[1758329975153,4.16533517,240.08,240.06,32.55]
[1758329975452,4.16533517,240.08,240.06,31.86]
[1758329976052,4.16533517,240.08,240.06,32.55]
[1758329976642,4.16533517,240.08,240.06,31.86]
[1758329978239,4.16533517,240.08,240.06,32.55]
[1758329979251,0.1,240.09,240.07,14.28559401]
[1758329979454,0.1,240.09,240.08,0.69]
[1758329980044,0.1,240.09,240.08,32.55]
[1758329980760,31.3,240.09,240.08,32.55]
[1758329981653,0.1,240.09,240.08,33.79468653]
[1758329982049,0.1,240.09,240.08,32.55]
[1758329982442,0.1,240.09,240.08,31.86]
[1758329982847,0.1,240.09,240.08,32.55]
[1758329985551,0.1,240.09,240.08,31.86]
[1758329986258,36.13510475,240.09,240.08,31.86]
[1758329987352,35.46510475,240.09,240.08,31.86]
[1758329988658,36.13510475,240.09,240.08,31.86]
[1758329988987,7.74863271,240.09,240.08,31.86]
[1758329989150,7.07863271,240.09,240.08,31.86]
[1758329991064,7.07863271,240.09,240.08,32.55]
[1758329991448,34.11352796,240.09,240.08,32.55]
[1758329992062,2.91352796,240.09,240.08,32.55]
[1758329995776,2.91352796,240.09,240.08,31.86]
[1758329996577,2.91352796,240.09,240.08,32.55]
[1758329997856,2.91352796,240.09,240.08,31.86]
[1758329998056,0.1,240.09,240.08,32.55]
[1758330000959,0.1,240.09,240.08,31.86]
[1758330001478,0.1,240.09,240.08,32.58]
[1758330002274,0.1,240.09,240.08,31.86]
[1758330002477,0.79,240.09,240.08,31.86]
[1758330002776,31.2,240.08,240.03,4.16493696]
[1758330002974,33.14533869,240.06,240.03,4.16493696]
[1758330003175,4.85579879,240.05,240.03,4.16493696]
[1758330003376,4.16579879,240.05,240.02,31.86]
[1758330004469,31.89,240.06,240.02,32.58]
[1758330004672,36.05566252,240.06,240.02,32.58]
[1758330004871,13.21845002,240.08,240.03,14.31559401]
[1758330005065,2.81298127,240.07,240.04,32.58]
[1758330005480,2.81298127,240.07,240.05,0.72]
[1758330005666,34.01298127,240.08,240.05,0.72]
[1758330005861,31.2,240.07,240.05,0.72]
[1758330006061,0.79,240.09,240.05,0.72]
[1758330006062,31.2,240.08,240.05,0.72]
[1758330008074,31.2,240.08,240.05,4.88577583]
[1758330008467,31.2,240.08,240.05,13.59559401]
[1758330008682,31.89,240.08,240.05,13.59559401]
[1758330009181,31.2,240.08,240.05,13.59559401]
[1758330010076,31.2,240.08,240.06,0.72]
[1758330010268,31.2,240.08,240.05,18.48137647]
[1758330012278,31.2,240.08,240.05,17.76137647]
[1758330012880,31.2,240.08,240.05,13.59559401]
[1758330013179,31.89,240.08,240.05,13.59559401]
[1758330013489,31.2,240.08,240.05,14.31559401]
[1758330014484,31.2,240.08,240.05,18.48138855]
[1758330016982,0.69,240.07,240.06,31.86]
[1758330017587,3.50224379,240.08,240.06,31.86]
[1758330017968,0.69,240.07,240.06,31.86]
[1758330018188,3.50224379,240.07,240.06,31.86]
[1758330018573,3.50224379,240.07,240.04,31.86]
[1758330018889,0.69,240.06,240.04,31.86]
[1758330019478,2.81224379,240.07,240.04,31.86]
[1758330019673,2.81224379,240.07,240.04,32.58]
[1758330021291,0.69,240.06,240.01,14.31559401]
[1758330021586,0.69,240.06,240.02,32.58]
[1758330021766,4.85568573,240.06,240.02,32.58]
[1758330022293,0.69,240.05,240.02,31.86]
[1758330022471,6.11102442,240.06,240.02,32.58]
[1758330022673,6.80102442,240.06,240.02,32.58]
[1758330023598,8.92308163,240.07,240.02,32.58]
[1758330023790,9.61308163,240.07,240.03,0.72]
[1758330024100,5.44758248,240.07,240.03,0.72]
[1758330025600,4.75758248,240.07,240.03,4.88604099]
[1758330025780,2.81224379,240.07,240.04,0.65]
[1758330026521,3.53224379,240.07,240.03,4.16604099]
[1758330026700,3.53224379,240.07,240.03,4.81604099]
[1758330031982,3.53224379,240.07,240.04,0.65]
[1758330032406,2.81224379,240.07,240.04,0.65]
[1758330034512,3.53224379,240.07,240.04,0.65]
[1758330034708,3.53224379,240.07,240.03,4.81604099]
[1758330037593,3.53224379,240.07,240.03,4.16604099]
[1758330037896,3.53224379,240.07,240.04,0.65]
[1758330038406,3.53224379,240.07,240.03,4.16604099]
[1758330038724,3.53224379,240.07,240.03,4.81604099]
[1758330039086,2.81224379,240.07,240.03,0.65]
[1758330039294,2.81224379,240.07,240.02,36.67627505]
[1758330039489,0.72,240.06,240.02,36.67627505]
[1758330039696,31.2,240.04,240.02,31.86]
[1758330039899,31.92,240.04,240.02,31.86]
[1758330040196,0.72,240.04,240.02,31.86]
[1758330040411,31.92,240.04,240.02,31.86]
[1758330041001,31.2,240.04,240.02,31.86]
[1758330042822,0.72,240.05,240.02,31.86]
[1758330043019,3.53142885,240.05,240.02,31.86]
[1758330044987,7.69723985,240.05,240.02,31.86]
[1758330046236,7.69723985,240.05,240.02,32.51]
[1758330047002,6.97723985,240.05,240.02,32.51]
[1758330047716,31.2,240.04,240.03,0.65]
[1758330047934,31.2,240.05,240.03,0.65]
[1758330048431,31.2,240.04,240.03,0.65]
[1758330049126,34.01145158,240.04,240.03,0.65]
[1758330049426,31.2,240.04,240.02,32.51]
[1758330056630,31.2,240.04,240.02,32.58]
[1758330057227,4.16563898,240.06,240.02,32.58]
[1758330057540,7.69703447,240.06,240.02,32.58]
[1758330058116,7.69703447,240.06,240.02,31.86]
[1758330058442,31.2,240.04,240.03,0.72]
[1758330059034,31.2,240.05,240.03,0.72]
[1758330059613,31.2,240.05,240.04,0.7]
[1758330059943,31.2,240.05,240.02,31.86]
[1758330060115,31.2,240.05,240.03,0.7]
[1758330062339,36.04549909,240.07,240.02,31.86]
[1758330062544,31.2,240.04,240.02,32.56]
[1758330062923,31.2,240.05,240.02,32.56]
[1758330063544,31.2,240.03,240.02,32.56]
[1758330063838,34.01233247,240.03,240.02,32.56]
[1758330064213,34.01233247,240.03,240.02,31.86]
[1758330065915,34.01233247,240.03,240.02,32.56]
[1758330066424,34.01233247,240.03,240.02,31.86]
[1758330068930,34.01233247,240.03,240.0,45.43559401]
[1758330069138,31.2,240.03,240.0,46.13559401]
[1758330069331,31.2,240.03,240.01,0.7]
[1758330071742,31.2,240.03,240.0,45.43559401]
[1758330071940,31.2,240.03,240.0,46.13559401]
[1758330072142,31.2,240.03,240.0,45.43559401]
[1758330072447,31.2,240.03,240.01,0.7]
[1758330082044,31.2,240.03,240.0,45.43559401]
[1758330082253,31.2,240.03,240.0,46.13559401]
[1758330083272,31.2,240.03,240.01,0.7]
[1758330083473,2.81322264,240.02,240.01,14.29559401]
[1758330084284,2.81322264,240.02,240.01,19.70774798]
[1758330084569,31.2,240.04,240.01,15.54125492]
[1758330084886,31.2,240.04,240.02,32.54]
[1758330085175,31.2,240.05,240.03,0.7]
[1758330085374,2.81324147,240.04,240.03,0.7]
[1758330085679,2.81324147,240.04,240.02,31.84]
[1758330085875,2.81339748,240.03,240.01,45.43559401]
[1758330086082,2.81339748,240.03,240.02,0.66]
[1758330086376,31.2,240.04,240.02,0.66]
[1758330087363,31.2,240.05,240.03,0.66]
[1758330087548,2.81341617,240.04,240.03,0.66]
[1758330089757,2.81341617,240.04,240.01,46.09559401]
[1758330089950,2.81341617,240.03,240.02,0.66]
[1758330090570,2.81341617,240.03,240.02,14.25559401]